Cogmind - Beta 10.1 @@@ ROGUE MODE // 2020.10.12 @ 16:53:09 Player: Cracklepappy Result: Destroyed by 8R-AWN with 8R-AWN's Boregun Performance ------------- Evolutions (1) 500 Regions Visited (5) 1000 Robots Destroyed (74) 370 Value Destroyed (1686) 1686 Prototype IDs (27) 540 Alien Tech Used (0) 0 Bonus (290) 290 TOTAL SCORE: 4386 Bonus ------- High Alert Combat Kills 16 Follower Combat Kills 208 Aligned with FarCom 300 Friendly Fire -234 Cogmind --------- Core Integrity 0/400 Matter 260/300 Energy 275/275 System Corruption 0% Temperature Cool (2) Movement Treading (232) Ox4 Location -9/Exiles Parts ------- > --- POWER (1) -------- Deuterium Engine > --- PROPULSION (2) --- Light Treads Advanced Treads > --- UTILITY (4) ------ Humpback Humpback > --- WEAPON (2) ------- Heavy Assault Rifle Autogun > --- INVENTORY (44) --- Nuclear Core Advanced Treads Advanced Treads Advanced Treads Cooling System Large Storage Unit Large Storage Unit Large Storage Unit Humpback High-capacity Battery (400) High-capacity Matter Pod (42) Improved Targeting Computer Thief Drone Bay (3/3) Guided Plasma Cannon Heavy Assault Rifle Makeshift Shrapnel Gun Rocket Launcher Mining Laser Peak State ------------ > --- POWER ------------ Light Angular Momentum Engine > --- PROPULSION ------- Light Treads Wheel > --- UTILITY ---------- Large Storage Unit Large Storage Unit Thief Drone Bay > --- WEAPON ----------- Assault Rifle Assault Rifle > --- INVENTORY -------- Ion Engine Light Treads Large Storage Unit High-capacity Matter Pod Spread Laser Beamcaster Assault Rifle Light Assault Rifle Grenade Launcher Mining Laser Shock Trap Shock Trap Shock Trap Shock Trap Shock Trap [Rating: 20] Favorites ----------- Power Deuterium Engine Engine Deuterium Engine Power Core Light Nuclear Core Propulsion Light Treads Treads Light Treads Wheel Wheel Utility Large Storage Unit Device Thief Drone Bay Storage Large Storage Unit Protection Light Armor Plating Weapon Heavy Assault Rifle Energy Gun Beamcaster Ballistic Gun Heavy Assault Rifle Ballistic Cannon Improved Light Cannon Launcher Rocket Launcher Special Weapon Mining Laser Build | -11 -10 -10 -9 -9 -9 ------- Run | Scr Mat Min Mat Min Exi Slots Evolved 2 | . . . 2 . . Power . | . . . . . . Propulsion . | . . . . . . Utility 2 | . . . 2 . . Weapon . | . . . . . . Parts Attached 69 | 7 12 8 25 8 9 Power 8 | 1 2 2 2 . 1 Engine 7 | 1 2 1 2 . 1 Core 1 | . . 1 . . . Reactor . | . . . . . . Propulsion 15 | 2 2 1 7 2 1 Treads 12 | 1 . 1 7 2 1 Leg . | . . . . . . Wheel 3 | 1 2 . . . . Hover . | . . . . . . Flight . | . . . . . . Utility 19 | 2 3 . 9 2 3 Device 1 | . . . 1 . . Storage 13 | 2 3 . 4 1 3 Processor . | . . . . . . Hackware . | . . . . . . Protection 5 | . . . 4 1 . Artifact . | . . . . . . Weapon 27 | 2 5 5 7 4 4 Energy Gun 1 | . . 1 . . . Energy Cannon . | . . . . . . Ballistic Gun 17 | 2 3 3 4 3 2 Ballistic Cannon 1 | . . . 1 . . Launcher 7 | . 1 1 2 1 2 Special Weapon 1 | . 1 . . . . Impact Weapon . | . . . . . . Slashing Weapon . | . . . . . . Piercing Weapon . | . . . . . . Special Melee Weapon . | . . . . . . Unidentified Prototypes 1 | . . . 1 . . Parts Lost 17 | . 2 4 2 6 3 Power 4 | . 1 2 . 1 . Propulsion 4 | . 1 1 . 1 1 Utility 3 | . . . 1 2 . Weapon 6 | . . 1 1 2 2 Highest Loss Streak 2 | . 1 2 2 2 2 Average Slot Usage (%) 90 | . 99 96 96 92 79 Engine 9 | . 13 5 11 7 8 Treads 19 | . 14 14 20 21 21 Wheel 4 | . 13 14 1 . . Storage 30 | . 28 28 32 37 27 Protection 2 | . . . 8 3 . Ballistic Gun 22 | . 27 27 20 19 21 Naked Turns . | . . . . . . Heaviest Build 176 | 15 42 45 66 67 176 Greatest Support 43 | 20 10 10 43 43 43 Greatest Overweight (x) 6 | 1 4 4 6 3 4 Average Overweight (x) 2 | . 1 3 2 1 3 Largest Inventory Capacity 44 | 8 16 16 22 22 44 Average Capacity 24 | 7 10 16 21 22 38 Most Carried 29 | 8 16 16 22 22 29 Average Carried 19 | 5 10 15 21 19 24 Final Capacity 44 | 8 16 16 22 22 44 Final Carried 22 | 8 16 16 22 19 19 Class Distribution -------------------- 67% | Hauler-Mutant 32% | Mutant Dominant Class ---------------- Mutant | -10/Materials Mutant | -10/Mines Hauler-Mutant | -9/Materials Hauler-Mutant | -9/Mines Hauler-Mutant | -9/Exiles Resources | -11 -10 -10 -9 -9 -9 ----------- Run | Scr Mat Min Mat Min Exi Matter Collected 2545 | 336 516 257 750 538 148 Remotely . | . . . . . . Salvage Created 2255 | 161 688 260 720 417 9 Parts 132 | 16 32 12 57 15 . Haulers Intercepted 7 | . 2 . 5 . . Recyclers Shooed . | . . . . . . Parts Field Recycled . | . . . . . . Retrieved Matter . | . . . . . . Parts Self-Destructed . | . . . . . . Prevented . | . . . . . . Kills | -11 -10 -10 -9 -9 -9 ------- Run | Scr Mat Min Mat Min Exi Combat Hostiles Destroyed 56 | . 16 7 15 14 4 Guns 36 | . 16 4 10 6 . AOE 20 | . . 3 5 8 4 Classes Destroyed 10 | 2 3 . 2 3 . Tunneler 4 | 4 . . . . . Hauler 7 | . 2 . 5 . . Recycler 3 | 1 . . . 2 . Watcher 3 | . . . 3 . . Swarmer 12 | . 3 3 6 . . Grunt 25 | . 13 4 3 5 . Duelist 1 | . . . . 1 . Sentry 6 | . . . 6 . . Demolisher 2 | . . . . 2 . Assembled 10 | . . . . 6 4 Thug 1 | . . 1 . . . Best Kill Streak 6 | 2 3 3 4 6 4 Combat Bots Only 6 | . 3 3 4 6 4 Max Kills in Single Turn 3 | 1 1 3 3 3 1 Gunslinging . | . . . . . . Exploded 3 | . . 3 3 3 1 Melee . | . . . . . . Uniques/NPCs Destroyed . | . . . . . . Combat | -11 -10 -10 -9 -9 -9 -------- Run | Scr Mat Min Mat Min Exi Damage Taken 3173 | . 593 272 800 1066 442 Core 518 | . 93 25 75 241 84 Absorbed by Shields . | . . . . . . Core Remaining (%) 76 | 100 . 52 . . . Volleys Fired 223 | 11 85 22 55 37 13 Largest 2 | 2 2 2 2 2 2 Hottest 100 | 40 100 50 59 46 46 Shots Fired 418 | 22 165 43 105 65 18 Gun 380 | 22 160 42 90 56 10 Cannon 11 | . . . 11 . . Launcher 23 | . 1 1 4 9 8 Special 4 | . 4 . . . . Kinetic 391 | 22 160 42 101 56 10 Thermal 4 | . 4 . . . . Explosive 23 | . 1 1 4 9 8 Electromagnetic . | . . . . . . Robot Hit Streak 22 | 6 11 9 22 8 12 Robot Miss Streak 7 | 2 7 2 3 4 1 Penetration Max . | . . . . . . Secondary Targets 1 | . . . . 1 . Max Gunslinging Chain 1 | . . . . 1 . Shots Hit Robots 263 | 14 92 31 75 38 13 Core Hits 132 | 6 35 17 38 24 12 Critical Hits 2 | . 1 1 . . . Critical Kills . | . . . . . . Critical Parts Destroyed 2 | . 1 1 . . . Melee Attacks . | . . . . . . Impact . | . . . . . . Slashing . | . . . . . . Piercing . | . . . . . . Sneak Attacks . | . . . . . . Combat Hostiles . | . . . . . . Follow-up Attacks . | . . . . . . Damage Inflicted 4901 | 120 1125 572 1322 1173 589 Guns 3019 | 120 1125 432 761 455 126 Cannons 167 | . . . 167 . . Explosions 1700 | . . 140 379 718 463 Melee . | . . . . . . Ramming 15 | . . . 15 . . Kinetic 3186 | 120 1125 432 928 455 126 Thermal 241 | . . . . 241 . Explosive 1459 | . . 140 379 477 463 Electromagnetic . | . . . . . . Impact . | . . . . . . Slashing . | . . . . . . Piercing . | . . . . . . Highest Corruption 2 | . 2 2 . . . Average Corruption 2 | . 2 2 . . . Corruption Purged . | . . . . . . Effects 21 | . 12 9 . . . Message Errors 4 | . 2 2 . . . Heat Flow Errors 1 | . 1 . . . . Energy Discharges 6 | . 4 2 . . . Data Loss (minor) 4 | . 2 2 . . . Targeting Errors 5 | . 3 2 . . . Weapon Failures 1 | . . 1 . . . Overload Shots . | . . . . . . Overflow Damage 127 | . . 6 . 61 60 Projectiles . | . . . . . . Explosions 127 | . . 6 . 61 60 Melee . | . . . . . . Knockbacks 1 | . . . 1 . . Impact . | . . . . . . Kinetic 1 | . . . 1 . . Secondary . | . . . . . . Self-Inflicted Damage 216 | . . 52 44 80 40 Shots 6 | . . 2 1 2 1 Rammed 1 | . . . 1 . . Targets Rammed 1 | . . . 1 . . Kicked . | . . . . . . Crushed . | . . . . . . Highest Temperature 178 | . 178 3 30 28 2 Average Temperature 26 | . 51 1 11 7 1 Received Heat Transfer 789 | . 258 111 201 219 . Siege Activations . | . . . . . . Robots Corrupted . | . . . . . . Combat Hostiles . | . . . . . . Parts Fried . | . . . . . . Impact Corruptions . | . . . . . . Robots Melted . | . . . . . . Combat Hostiles . | . . . . . . Parts Melted 1 | . . . . 1 . Heat Transferred 350 | . . . . 350 . Parts Sabotaged . | . . . . . . Parts Stolen . | . . . . . . Parts Stripped . | . . . . . . Power Chain Reactions . | . . . . . . Missiles Intercepted . | . . . . . . Alert | -11 -10 -10 -9 -9 -9 ------- Run | Scr Mat Min Mat Min Exi Peak Influence 466 | 25 358 299 466 210 . Initial 139 | . 16 139 38 82 . Average 176 | 14 208 154 256 87 . Maximum Alert Level 2 | . 1 1 2 1 . Low Security (%) 55 | 100 40 68 24 94 . Level 1 40 | . 59 31 61 5 . Level 2 4 | . . . 14 . . Level 3 . | . . . . . . Level 4 . | . . . . . . Level 5 . | . . . . . . High Security . | . . . . . . Max Security . | . . . . . . Squads Dispatched 15 | . 7 . 8 . . Investigation 4 | . 2 . 2 . . Extermination . | . . . . . . Reinforcement 11 | . 5 . 6 . . Assault . | . . . . . . Garrison . | . . . . . . Intercept . | . . . . . . Construction Impeded 1 | . . . 1 . . Haulers Reinforced . | . . . . . . Stealth | -11 -10 -10 -9 -9 -9 --------- Run | Scr Mat Min Mat Min Exi Distress Signals 2 | . . . 2 . . Communications Jammed . | . . . . . . Distress Signals . | . . . . . . Times Spotted 96 | . 33 9 32 15 7 Peak Tracking Total 9 | . 6 3 7 4 9 Tactical Retreats 6 | . 2 2 1 1 . Traps | -11 -10 -10 -9 -9 -9 ------- Run | Scr Mat Min Mat Min Exi Traps Triggered 1 | . 1 . . . . Indirectly . | . . . . . . Trap Hack Attempts . | . . . . . . Triggered . | . . . . . . Disarmed . | . . . . . . Reprogrammed . | . . . . . . Reused 3 | . . . . . 3 Traps Extracted . | . . . . . . Installed 5 | . . . . . 5 Triggered . | . . . . . . Exploded 2 | . . . . . 2 Machines | -11 -10 -10 -9 -9 -9 ---------- Run | Scr Mat Min Mat Min Exi Machines Disabled 16 | . 1 3 2 7 3 Max in Single Turn 6 | . 1 2 1 6 1 Machines Sabotaged . | . . . . . . Garrisons Compromised . | . . . . . . Overloaded Fab Kills . | . . . . . . Fab Network Shutdowns . | . . . . . . Hacking | -11 -10 -10 -9 -9 -9 --------- Run | Scr Mat Min Mat Min Exi Machines Accessed 13 | . 6 1 4 . 2 Terminals 7 | . 4 . 3 . . Fabricators . | . . . . . . Repair Stations . | . . . . . . Recycling Units 3 | . 2 . 1 . . Scanalyzers . | . . . . . . Garrison Access . | . . . . . . Total Hacks 23 | . 12 1 7 . 3 Successful 16 | . 9 1 3 . 3 Failed 7 | . 3 . 4 . . Catastrophic 2 | . 1 . 1 . . Database Lockouts . | . . . . . . Manual 12 | . 7 . 4 . 1 Terminals 16 | . 10 . 6 . . Fabricators . | . . . . . . Repair Stations . | . . . . . . Recycling Units 3 | . 2 . 1 . . Scanalyzers . | . . . . . . Garrison Access . | . . . . . . Terminal Hacks 12 | . 6 1 2 . 3 Record 2 | . . . . . 2 Part Schematic 2 | . 1 . 1 . . Prototype ID Bank 2 | . 2 . . . . Open Door 1 | . . 1 . . . Unreport Threat 1 | . . . 1 . . Locate Traps 2 | . 2 . . . . Registered Components 1 | . 1 . . . . EX-Prototype ID Bank 1 | . . . . . 1 Fabricator Hacks . | . . . . . . Repair Station Hacks . | . . . . . . Recycling Unit Hacks . | . . . . . . Scanalyzer . | . . . . . . Garrison Access Hacks . | . . . . . . Unauthorized Hacks 4 | . 3 . 1 . . Terminals 1 | . 1 . . . . Operators 1 | . 1 . . . . Fabricators . | . . . . . . Repair Stations . | . . . . . . Recycling Units 3 | . 2 . 1 . . Tunnel 3 | . 2 . 1 . . Scanalyzers . | . . . . . . Garrison Access . | . . . . . . Data Cores Recovered . | . . . . . . Used . | . . . . . . Hacking Detections 7 | . 4 . 3 . . Full Trace Events . | . . . . . . Feedback Events . | . . . . . . Feedback Blocked . | . . . . . . Robot Schematics Acquired . | . . . . . . Robots Built . | . . . . . . Matter . | . . . . . . Time . | . . . . . . Total Robot Build Rating . | . . . . . . Part Schematics Acquired 2 | . 1 . 1 . . Parts Built . | . . . . . . Matter . | . . . . . . Time . | . . . . . . Total Part Build Rating . | . . . . . . Parts Repaired . | . . . . . . Time . | . . . . . . Parts Recycled . | . . . . . . Recycled Matter . | . . . . . . Retrieved Matter . | . . . . . . Retrieved Components . | . . . . . . Parts Scanalyzed . | . . . . . . Part Schematics Acquired . | . . . . . . Parts Damaged . | . . . . . . Bothacking | -11 -10 -10 -9 -9 -9 ------------ Run | Scr Mat Min Mat Min Exi Used RIF Installer . | . . . . . . Robots Hacked . | . . . . . . Non-combat . | . . . . . . Combat . | . . . . . . Robot Hacks Applied . | . . . . . . Relay Couplers Released . | . . . . . . Robots Rewired . | . . . . . . Allies Hacked . | . . . . . . Hacks Repelled . | . . . . . . Allies | -11 -10 -10 -9 -9 -9 -------- Run | Scr Mat Min Mat Min Exi Total Allies 3 | . . 3 . . . Largest Group 3 | . . 3 3 . . Highest-Rated Group 40 | . . 40 40 . . Highest-Rated Ally 16 | . . 16 16 . . Total Orders . | . . . . . . Ally Attacks 45 | . . . 45 . . Total Damage 523 | . . . 523 . . Kills 8 | . . . 8 . . Allies Corrupted . | . . . . . . Allies Melted . | . . . . . . Intel | -11 -10 -10 -9 -9 -9 ------- Run | Scr Mat Min Mat Min Exi Robot Analysis Total . | . . . . . . Derelict Logs Recovered 3 | . . 2 . 1 . Drone Launches . | . . . . . . Drone Recoveries . | . . . . . . Exploration | -11 -10 -10 -9 -9 -9 ------------- Run | Scr Mat Min Mat Min Exi Turns Passed 6347 | 151 1143 722 1232 1053 2046 Spaces Moved 3332 | 107 772 517 544 511 881 Core 4 | 4 . . . . . Treads 1805 | 4 . . 409 511 881 Legs . | . . . . . . Wheels 1523 | 99 772 517 135 . . Hover . | . . . . . . Flight . | . . . . . . Fastest Speed 50 | 50 90 110 120 180 180 Average Speed 157 | 89 99 118 168 180 220 Slowest Speed 240 | 160 120 120 180 220 240 Overloaded Moves . | . . . . . . Propulsion Burnouts . | . . . . . . Robots Hopped . | . . . . . . Cave-ins Triggered . | . . . . . . Exploration Rate (%) 75 | 4 97 99 60 98 92 Regions Visited 5 Branch Regions 3 Pre-discovered Areas 6 | . 2 1 1 1 1 Known Exits Taken . | . . . . . . Unknown Exits Taken 5 | 1 1 1 1 1 . Scrap Searched 2 | . . 1 . 1 . Spaces Dug 14 | . 3 . 11 . . Terrain Destroyed 180 | . 12 18 27 83 40 Melee . | . . . . . . Projectile 5 | . 4 . 1 . . AOE 175 | . 8 18 26 83 40 Terrain Rammed . | . . . . . . Walls Destroyed . | . . . . . . Machines Disabled . | . . . . . . Actions | -11 -10 -10 -9 -9 -9 --------- Run | Scr Mat Min Mat Min Exi Total 4015 | 139 979 584 765 577 971 Wait 254 | 3 85 20 99 17 30 Move 3327 | 106 771 516 543 510 881 Hop . | . . . . . . Pick Up 77 | 11 15 10 18 4 19 Fast Attach 15 | 5 . 2 5 1 2 Attach 21 | 2 2 2 4 6 5 Detach 1 | . . . 1 . . Swap 33 | . 10 4 16 1 2 Drop 58 | 1 11 8 23 1 14 Fire 223 | 11 85 22 55 37 13 Melee . | . . . . . . Ram . | . . . . . . Kick . | . . . . . . Crush 1 | . . . 1 . . Escape Stasis . | . . . . . . Rewire . | . . . . . . Trap 5 | . . . . . 5 Miscellaneous . | . . . . . . Route ------- -11/Scrapyard -10/Materials (discovered 5 exits: *Mat x3 / *Min x2) -10/Mines (discovered 2 exits: *Mat x2) -9/Materials (discovered 6 exits: *Mat x3 / [*Min] / [*Sto x2]) -9/Mines (discovered 3 exits: *Mat x2 / *Exi) -9/Exiles (discovered 2 exits: [*Min x2]) History --------- Turn | Location | Event 5 | -11/Scrapyard | Discovered new exit (range 16) 152 | -11/Scrapyard | Entered Materials 310 | -10/Materials | Build established: Mutant 342 | -10/Materials | Discovered new exit (range 15) 633 | -10/Materials | Discovered new exit (range 4) 746 | -10/Materials | Discovered new exit (range 16) 1046 | -10/Materials | Discovered new exit (range 15) 1133 | -10/Materials | Discovered new exit (range 15) 1295 | -10/Materials | Entered Mines 1317 | -10/Mines | Learned location of 2 exits from Materials 1339 | -10/Mines | Discovered new exit (range 10) 1529 | -10/Mines | Learned location of Storage (-9) 1590 | -10/Mines | Discovered new exit (range 13) 1681 | -10/Mines | Found the Drone Emporium 1685 | -10/Mines | Found Prototype Device 1887 | -10/Mines | Found a hidden stash of uninstalled traps 1942 | -10/Mines | Assisted by bots powering up and referring to "LRC-V3" 2017 | -10/Mines | Entered Materials 2017 | -9/Materials | Accompanied by 3 allies 2017 | -9/Materials | Evolved 2 slots: Utility x2 2017 | -9/Materials | Identified Thief Drone Bay 2018 | -9/Materials | Identified exit to Materials 2227 | -9/Materials | Discovered new exit (range 13) 2385 | -9/Materials | Build established: Hauler-Mutant 2435 | -9/Materials | Discovered exit to Materials (range 16) 2535 | -9/Materials | Discovered new exit (range 15) 3197 | -9/Materials | Discovered new exit (range 15) 3249 | -9/Materials | Entered Mines 3306 | -9/Mines | Assembled infested the area 3307 | -9/Mines | Learned location of Zion (-7) 3311 | -9/Mines | Assisted by a Guerilla fighting off Assembled 3398 | -9/Mines | Received a Rocket Launcher from a helpful Derelict 3515 | -9/Mines | Discovered exit to Materials (range 9) 3572 | -9/Mines | Core integrity fell below 50% 3868 | -9/Mines | Discovered exit to Materials (range 15) 3941 | -9/Mines | Deemed a non-threat by the Exiles lab entrance 3941 | -9/Mines | Discovered new exit (range 5) 4054 | -9/Mines | A weapon hastily lodged in a ceiling crevice suddenly fell to the ground 4302 | -9/Mines | Entered Exiles 4346 | -9/Exiles | Met 8R-AWN 4373 | -9/Exiles | Met EX-HEX 4487 | -9/Exiles | Met EX-DEC 4540 | -9/Exiles | Visited The Gauntlet 4935 | -9/Exiles | Discovered new exit (range 14) 5163 | -9/Exiles | Met EX-BIN 5189 | -9/Exiles | Aligned with FarCom system 5192 | -9/Exiles | Given EX-Vault access code 5411 | -9/Exiles | Discovered new exit (range 14) 5725 | -9/Exiles | Opened EX-Vault 5752 | -9/Exiles | Found Gui. Plasma Cannon 5803 | -9/Exiles | Warned to stay clear of 0b10 Research branches 6228 | -9/Exiles | Attacked by the Exiles 6264 | -9/Exiles | Core integrity fell below 20% 6348 | -9/Exiles | Destroyed by 8R-AWN with 8R-AWN's Boregun Last Messages --------------- 06335_ Critical hit. 06335_ Hvy. Assault Rifle destroyed. 06335_ HV Slug penetrates Wall. 06335_ Penetrated by HV Slug. 06335_ HV Slug penetrates Wall. 06337_ Penetrated by HV Slug. 06337_ HV Slug penetrates Wall. 06337_ Penetrated by HV Slug. 06337_ HV Slug penetrates Wall. 06339_ Penetrated by HV Slug. 06339_ HV Slug penetrates Wall. 06342_ Penetrated by HV Slug. 06342_ HV Slug penetrates Wall. 06344_ Penetrated by HV Slug. 06344_ HV Slug penetrates Wall. 06346_ Penetrated by HV Slug. 06346_ HV Slug penetrates Wall. 06346_ Penetrated by HV Slug. 06346_ HV Slug penetrates Wall. 06348_ Penetrated by HV Slug. Map ----- +----------------------------------------------------+ | ????????????????????????????????????????????????? | | ????????????????????????????????????????????????? | | ????????????????????????????????????????????????? | | ????????????????????????????????????????????????? | | ????????????????????????????????????????????????? | | ????????????????????????????????????????????????? | | ????????????????????????????????????????????????? | | ????????????????????????????????????????????????? | | ????????????????????????????????????????????????? | | ????????????????####????????????????????????????? | | ???????????????## ##??????????????????????????? | | ???????????????# #??????????????????????????? | | ???????????????# < #??????????????????????????? | | ???????????????# ##?????????????????????????? | | ???????????????# ?????????????????????????? | | ???????????????# #?????????????????????????? | | ????????????????# #?????????????????????????? | | ????????????????# ##????????????????????????? | | ?????????????????# #????????????#######?????? | | ?????????????????# #######??????# "#?????? | | ?????????????????# #""##?????# "#?????? | | ?????????????????## #?????# "#?????? | | ??????????????????##" ! ##???## ""#?????? | | ??????????????????#"" #####" ""#?????? | | ??????????????????#### ##" ""#?????? | | ?????????????????????## @g # " ###?????? | | ??????????????????????# #; #???????? | | ??????????????????????######; # ##???? | | ???????????????????????????#### # #???? | | ??????????????????????########" #???? | | ??????????????????????# ! """"" # | | ??????????????????????#! # | | ??????????????????????#! | | ??????????????????????#! ### | | ??????????????????????# !""""""###??# # | | ??????????????????????##########?????# ## | | ??????????????????????????????????????### | | ??????????????????????????????????????????## | | ????????????????????????????????????????????## | | ?????????????????????????????????????????????## | | ??????????????????????????????????????????????##" | | ???????????????????????????????????????????????#" | | ??????????????????????????????????????????????##" | | ??????????????????????????????????????????????#"" | | ??????????????????????????????????????????????#"" | | ??????????????????????????????????????????????""" | | ??????????????????????????????????????????????""" | | ??????????????????????????????????????????????"" | | ?????????????????????????????????????????????#""" | | ?????????????????????????????????????????????#"" | +----------------------------------------------------+ Best States ------------- Heat Dissipation 28 Energy Generation 18 Energy Capacity 275 Matter Stores 500 Matter Capacity 500 Sight Range 16 Terrain Scan Density 10 Armor Coverage 150 Evasion (%) 44 Recoil Reduction 2 Item Schematics ----------------- Hcp. Storage Unit | -10/Materials | Hacked Lrg. Storage Unit | -9/Materials | Hacked Robot Schematics ------------------ None Fabricated ------------ Nothing Alien Tech Used ----------------- None Achievements -------------- None Challenges ------------ None Game ------ Seed ShadingMomentumFlail Manual? 0 Play Time 00:35:07 Cumulative 210.5 hours Start 2020.10.12 @ 16:01:28 End 2020.10.12 @ 16:53:09 Sessions 1 Manual Loads 0 Difficulty Rogue Special Mode None Game No. 234 Rogue 234 Adventurer 0 Explorer 0 Win Type - Total 2 Types 2/0/0/0/0/0/0/0/0 Lore% 61 Gallery% 75 Achievement% 58 Wizard Run 0 Options --------- ASCII 0 Keyboard 0 Movement Numpad Keybinds 0 Fullscreen 2 Font 24/Smallcaps Map View 76x50 Tactical HUD 1 Map Filters NONE Filters NONE Steam 1 RUN: f5643348-cb56-4f5f-9b1d-86d69c9bdf67